fUSD/lending_fUSD_20260620
["ID","MTS","AMOUNT","RATE_DAILY","PERIOD"]
[425789513,1781891452000,-301.18797797,0.00034096,2]
[425789506,1781891452000,-300.0,0.00034096,2]
[425789520,1781891452000,-300.82634035,0.00034096,2]
[425789512,1781891452000,-453.76238698,0.00034096,2]
[425789521,1781891452000,-301.5638225,0.00034096,2]
[425789516,1781891452000,-300.0,0.00034096,2]
[425789515,1781891452000,-300.0,0.00034096,2]
[425789517,1781891452000,-300.0,0.00034096,2]
[425789519,1781891452000,-443.77493957,0.00034096,2]
[425789514,1781891452000,-300.0,0.00034096,2]
[425789518,1781891452000,-300.0,0.00034096,2]
[425789522,1781891452000,-300.77232206,0.00034096,2]
[425789523,1781891452000,-300.74484424,0.00034096,2]
[425789590,1781891453000,-300.0,0.00034096,2]
[425789589,1781891453000,-300.0,0.00034096,2]
[425789586,1781891453000,-300.68374201,0.00034096,2]
[425789585,1781891453000,-303.0384375,0.00034096,2]
[425789582,1781891453000,-300.21285716,0.00034096,2]
[425789576,1781891453000,-302.62948189,0.00034096,2]
[425789583,1781891453000,-717.27008137,0.00034096,2]
[425789579,1781891453000,-300.0,0.00034096,2]
[425789581,1781891453000,-300.0,0.00034096,2]
[425789587,1781891453000,-301.26550419,0.00034096,2]
[425789584,1781891453000,-975.55439834,0.00034096,2]
[425789588,1781891453000,-300.0,0.00034096,2]
[425789603,1781891453000,-300.83277241,0.00034096,2]
[425789595,1781891453000,-1805.25903877,0.00034096,2]
[425789592,1781891453000,-529.05209385,0.00034096,2]
[425789594,1781891453000,-953.23174262,0.00034096,2]
[425789593,1781891453000,-1161.36974449,0.00034096,2]
[425789597,1781891453000,-1353.7959994,0.00034096,2]
[425789596,1781891453000,-310.87455439,0.00034096,2]
[425789598,1781891453000,-300.0,0.00034096,2]
[425789602,1781891453000,-540.78379888,0.00034096,2]
[425789601,1781891453000,-453.76238698,0.00034096,2]
[425789604,1781891453000,-300.0,0.00034096,2]
[425789580,1781891453000,-812.1693504,0.00034096,2]
[425789591,1781891453000,-345.36551989,0.00034096,2]
[425789578,1781891453000,-300.0,0.00034096,2]
[425789552,1781891453000,-300.0,0.00034096,2]
[425789574,1781891453000,-300.0,0.00034096,2]
[425789600,1781891453000,-301.27653346,0.00034096,2]
[425789551,1781891453000,-529.05209385,0.00034096,2]
[425789553,1781891453000,-301.08071916,0.00034096,2]
[425789556,1781891453000,-1805.25903877,0.00034096,2]
[425789559,1781891453000,-310.87455439,0.00034096,2]
[425789555,1781891453000,-953.23174262,0.00034096,2]
[425789554,1781891453000,-868.23630602,0.00034096,2]
[425789558,1781891453000,-300.93081314,0.00034096,2]
[425789560,1781891453000,-300.76274611,0.00034096,2]
[425789562,1781891453000,-300.0,0.00034096,2]
[425789561,1781891453000,-1346.77663016,0.00034096,2]
[425789577,1781891453000,-300.0,0.00034096,2]
[425789557,1781891453000,-300.6503678,0.00034096,2]
[425789564,1781891453000,-596.6186847,0.00034096,2]
[425789565,1781891453000,-300.0,0.00034096,2]
[425789568,1781891453000,-453.76238698,0.00034096,2]
[425789567,1781891453000,-586.75963259,0.00034096,2]
[425789569,1781891453000,-300.0,0.00034096,2]
[425789571,1781891453000,-300.0,0.00034096,2]
[425789572,1781891453000,-300.92006024,0.00034096,2]
[425789570,1781891453000,-301.08644392,0.00034096,2]
[425789573,1781891453000,-301.14202972,0.00034096,2]
[425789566,1781891453000,-686.62261657,0.00034096,2]
[425789575,1781891453000,-1099.79313,0.00034096,2]
[425789563,1781891453000,-300.78274219,0.00034096,2]
[425789599,1781891453000,-797.96400264,0.00034096,2]
[425789626,1781891453000,-609.58939926,0.00034096,2]
[425789607,1781891453000,-300.75340125,0.00034096,2]
[425789634,1781891453000,-172.47,0.0003411,120]
[425789636,1781891453000,-155.08639276,0.00034112,7]
[425789633,1781891453000,-250.0,0.00034105,7]
[425789637,1781891453000,-200.0,0.00034176,2]
[425789635,1781891453000,-260.01538222,0.00034112,7]
[425789641,1781891453000,-33333.0,0.00034259,13]
[425789640,1781891453000,-25368.0,0.00034258,9]
[425789643,1781891453000,-167.857942,0.00034265,2]
[425789642,1781891453000,-606.7581211,0.00034265,2]
[425789646,1781891453000,-8853.3411022,0.0003431,2]
[425789644,1781891453000,-2890.4280476,0.0003427,2]
[425789639,1781891453000,-2000.0,0.000342,7]
[425789648,1781891453000,-162.29925736,0.00034358,2]
[425789645,1781891453000,-290.3986294,0.00034294,2]
[425789649,1781891453000,-162.29925736,0.00034358,2]
[425789647,1781891453000,-1785.88,0.00034329,120]
[425789651,1781891453000,-244.11,0.000344,7]
[425789652,1781891453000,-510.0,0.00034479,10]
[425789653,1781891453000,-1139.98760811,0.000345,2]
[425789654,1781891453000,-265.33057822,0.00034515,2]
[425789656,1781891453000,-351.99942642,0.00034582,2]
[425789655,1781891453000,-594.81728033,0.00034582,2]
[425789658,1781891453000,-485.04909001,0.00034585,2]
[425789605,1781891453000,-312.56745873,0.00034096,2]
[425789650,1781891453000,-196.614,0.00034358,2]
[425789632,1781891453000,-180.15,0.00034105,120]
[425789657,1781891453000,-455.19371157,0.00034585,2]
[425789630,1781891453000,-166.69259728,0.00034104,2]
[425789638,1781891453000,-150.0,0.0003419,2]
[425789608,1781891453000,-300.0,0.00034096,2]
[425789610,1781891453000,-300.0,0.00034096,2]
[425789609,1781891453000,-300.79342876,0.00034096,2]
[425789606,1781891453000,-1099.79313001,0.00034096,2]
[425789613,1781891453000,-300.0,0.00034096,2]
[425789611,1781891453000,-303.03843751,0.00034096,2]
[425789615,1781891453000,-707.65857622,0.00034096,2]
[425789614,1781891453000,-461.95871132,0.00034096,2]
[425789617,1781891453000,-1805.25903877,0.00034096,2]
[425789616,1781891453000,-953.23174262,0.00034096,2]
[425789659,1781891453000,-542.0,0.0003459,30]
[425789612,1781891453000,-300.71941569,0.00034096,2]
[425789618,1781891453000,-310.87455439,0.00034096,2]
[425789621,1781891453000,-300.99682786,0.00034096,2]
[425789627,1781891453000,-176.36104741,0.00034104,2]
[425789628,1781891453000,-317.44988533,0.00034104,2]
[425789622,1781891453000,-300.0,0.00034096,2]
[425789629,1781891453000,-353.92393623,0.00034104,2]
[425789624,1781891453000,-300.0,0.00034096,2]
[425789623,1781891453000,-300.0,0.00034096,2]
[425789619,1781891453000,-300.76378063,0.00034096,2]
[425789620,1781891453000,-606.89131851,0.00034096,2]
[425789625,1781891453000,-953.23174262,0.00034096,2]
[425789631,1781891453000,-232.14923379,0.00034104,2]
[425789678,1781891454000,-2000.0,0.000349,7]
[425789696,1781891454000,-200.0,0.00035086,10]
[425789685,1781891454000,-157.0,0.00034947,30]
[425789683,1781891454000,-675.0,0.00034947,30]
[425789687,1781891454000,-154.0,0.00034947,30]
[425789688,1781891454000,-155.0,0.00034947,30]
[425789698,1781891454000,-66856.1771255,0.00035145,2]
[425789689,1781891454000,-156.0,0.00034947,30]
[425789690,1781891454000,-151.0,0.00034947,30]
[425789695,1781891454000,-150.0,0.00035069,2]
[425789697,1781891454000,-1577.0,0.00035109,10]
[425789693,1781891454000,-1355.0,0.0003503,62]
[425789691,1781891454000,-464.0,0.00034947,30]
[425789694,1781891454000,-1785.88,0.00035068,120]
[425789699,1781891454000,-793.08970711,0.00035151,2]
[425789700,1781891454000,-527.99913963,0.00035151,2]
[425789707,1781891454000,-385.76087659,0.00035161,2]
[425789684,1781891454000,-153.0,0.00034947,30]
[425789692,1781891454000,-4190.000001,0.00035,6]
[425789682,1781891454000,-183.0,0.00034946,30]
[425789668,1781891454000,-308.0,0.00034614,30]
[425789686,1781891454000,-273.0,0.00034947,30]
[425789703,1781891454000,-298.32817687,0.00035156,120]
[425789662,1781891454000,-213.28418118,0.00034592,2]
[425789661,1781891454000,-527.64121658,0.00034592,2]
[425789660,1781891454000,-475.79263478,0.00034592,2]
[425789664,1781891454000,-433.80937914,0.00034594,2]
[425789666,1781891454000,-430.41831273,0.00034594,2]
[425789674,1781891454000,-804.17102365,0.00034837,2]
[425789665,1781891454000,-404.09949815,0.00034594,2]
[425789663,1781891454000,-493.4594111,0.00034594,2]
[425789679,1781891454000,-177.0,0.00034901,120]
[425789667,1781891454000,-161.95887267,0.00034594,2]
[425789670,1781891454000,-500.0,0.00034751,28]
[425789669,1781891454000,-620.07,0.00034618,2]
[425789672,1781891454000,-1500.0,0.00034795,2]
[425789673,1781891454000,-644.79446245,0.00034837,2]
[425789675,1781891454000,-301.14337869,0.0003484,2]
[425789677,1781891454000,-244.11,0.000349,7]
[425789680,1781891454000,-314.0,0.00034945,30]
[425789681,1781891454000,-213.0,0.00034945,30]
[425789676,1781891454000,-200.0,0.0003486,2]
[425789671,1781891454000,-269516.0,0.0003478,30]
[425789706,1781891454000,-426.56836235,0.0003516,2]
[425789702,1781891454000,-646.73212002,0.00035153,2]
[425789709,1781891454000,-355.40547318,0.00035161,2]
[425789727,1781891454000,-201.8722626,0.00035175,2]
[425789728,1781891454000,-323.04572466,0.00035175,2]
[425789731,1781891454000,-418.55655373,0.00035183,2]
[425789732,1781891454000,-212.86592746,0.00035183,2]
[425789735,1781891454000,-386.23378225,0.00035183,2]
[425789734,1781891454000,-154.30243627,0.00035183,2]
[425789736,1781891454000,-865.48181011,0.00035232,120]
[425789737,1781891454000,-778.96031388,0.00035232,120]
[425789738,1781891454000,-389.46681455,0.00035232,120]
[425789742,1781891454000,-2672.9516,0.00035325,2]
[425789739,1781891454000,-1106.69,0.00035249,7]
[425789740,1781891454000,-400.0,0.0003526,60]
[425789741,1781891454000,-5000.0,0.0003526,30]
[425789744,1781891454000,-620.07,0.00035432,2]
[425789745,1781891454000,-637.69700445,0.00035433,2]
[425789747,1781891454000,-65820.01192363,0.00035455,60]
[425789748,1781891454000,-35924.50151686,0.00035455,90]
[425789746,1781891454000,-151.0,0.00035434,2]
[425789704,1781891454000,-634.3901797,0.0003516,2]
[425789733,1781891454000,-225.50599388,0.00035183,2]
[425789726,1781891454000,-219.84005869,0.00035175,2]
[425789743,1781891454000,-7241.54360195,0.00035355,2]
[425789729,1781891454000,-250.85792076,0.00035183,2]
[425789710,1781891454000,-164.21496577,0.00035161,2]
[425789724,1781891454000,-437.17286184,0.00035175,2]
[425789701,1781891454000,-606.92494875,0.00035153,2]
[425789705,1781891454000,-703.5216221,0.0003516,2]
[425789708,1781891454000,-155.75251896,0.00035161,2]
[425789712,1781891454000,-357.65788677,0.00035161,2]
[425789714,1781891454000,-657.94588147,0.00035163,2]
[425789713,1781891454000,-393.10180201,0.00035161,2]
[425789716,1781891454000,-606.14924723,0.00035163,2]
[425789720,1781891454000,-386.51739988,0.00035165,2]
[425789711,1781891454000,-165.59539647,0.00035161,2]
[425789715,1781891454000,-650.7140687,0.00035163,2]
[425789725,1781891454000,-196.59704815,0.00035175,2]
[425789730,1781891454000,-430.69800159,0.00035183,2]
[425789722,1781891454000,-275.93530028,0.00035175,2]
[425789718,1781891454000,-323.91774535,0.00035163,2]
[425789723,1781891454000,-341.61088064,0.00035175,2]
[425789721,1781891454000,-166.34621696,0.00035175,2]
[425789719,1781891454000,-167.36336758,0.00035165,2]
[425789717,1781891454000,-645.62746909,0.00035163,2]
[425789784,1781891455000,-500.0,0.00035616,7]
[425789774,1781891455000,-500.0,0.00035616,7]
[425789775,1781891455000,-500.0,0.00035616,7]
[425789776,1781891455000,-500.0,0.00035616,7]
[425789782,1781891455000,-500.0,0.00035616,7]
[425789779,1781891455000,-274.88445867,0.00035616,7]
[425789780,1781891455000,-500.0,0.00035616,7]
[425789777,1781891455000,-500.0,0.00035616,7]
[425789781,1781891455000,-500.0,0.00035616,7]
[425789794,1781891455000,-500.0,0.00035616,7]
[425789795,1781891455000,-391.25,0.00035616,2]
[425789790,1781891455000,-500.0,0.00035616,7]
[425789785,1781891455000,-500.0,0.00035616,7]
[425789787,1781891455000,-500.0,0.00035616,7]
[425789792,1781891455000,-500.0,0.00035616,7]
[425789789,1781891455000,-500.0,0.00035616,7]
[425789788,1781891455000,-500.0,0.00035616,7]
[425789786,1781891455000,-500.0,0.00035616,7]
[425789791,1781891455000,-500.0,0.00035616,7]
[425789797,1781891455000,-182.3673319,0.00035636,30]
[425789772,1781891455000,-500.0,0.00035616,7]
[425789793,1781891455000,-500.0,0.00035616,7]
[425789773,1781891455000,-500.0,0.00035616,7]
[425789756,1781891455000,-244.11,0.000355,7]
[425789769,1781891455000,-500.0,0.00035616,120]
[425789796,1781891455000,-624.408531,0.00035616,120]
[425789750,1781891455000,-1021.67124622,0.00024405,2]
[425789751,1781891455000,-64075.49848314,0.00035455,90]
[425789755,1781891455000,-152.0,0.00035491,30]
[425789757,1781891455000,-150.719105,0.00035507,120]
[425789749,1781891455000,-671.43176771,0.00024405,2]
[425789752,1781891455000,-396.72,0.00035458,2]
[425789753,1781891455000,-1355.0,0.0003546,88]
[425789754,1781891455000,-1504.75120409,0.00035491,2]
[425789758,1781891455000,-152.0,0.0003554,30]
[425789783,1781891455000,-500.0,0.00035616,7]
[425789760,1781891455000,-214.37,0.000356,2]
[425789771,1781891455000,-500.0,0.00035616,7]
[425789761,1781891455000,-635.32,0.000356,60]
[425789759,1781891455000,-526.8743117,0.00035562,7]
[425789762,1781891455000,-635.32,0.000356,120]
[425789768,1781891455000,-166.62,0.00035616,2]
[425789763,1781891455000,-1307.2454,0.000356,120]
[425789766,1781891455000,-150.0,0.000356,10]
[425789767,1781891455000,-2000.0,0.000356,7]
[425789765,1781891455000,-1307.6454,0.000356,120]
[425789764,1781891455000,-1307.6454,0.000356,120]
[425789770,1781891455000,-180.26279904,0.00035616,3]
[425789798,1781891455000,-991.36213389,0.00035719,2]
[425789778,1781891455000,-500.0,0.00035616,7]
[425789799,1781891455000,-758.65618594,0.00035722,2]
[425789826,1781891455000,-463.43,0.00036,2]
[425789829,1781891455000,-1178.77,0.00036,60]
[425789828,1781891455000,-62990.31171251,0.00036,2]
[425789831,1781891455000,-265.9267052,0.00036002,120]
[425789834,1781891455000,-1000.0,0.00036164,2]
[425789835,1781891455000,-500.0,0.00036164,30]
[425789840,1781891455000,-500.0,0.00036164,30]
[425789836,1781891455000,-500.0,0.00036164,30]
[425789833,1781891455000,-265.33057822,0.00036153,2]
[425789830,1781891455000,-22459.87,0.00036,7]
[425789827,1781891455000,-463.43,0.00036,2]
[425789841,1781891455000,-500.0,0.00036164,30]
[425789839,1781891455000,-500.0,0.00036164,30]
[425789837,1781891455000,-500.0,0.00036164,30]
[425789832,1781891455000,-531.48441695,0.00036064,2]
[425789842,1781891455000,-500.0,0.00036164,30]
[425789844,1781891455000,-500.0,0.00036164,30]
[425789843,1781891455000,-500.0,0.00036164,30]
[425789846,1781891455000,-500.0,0.00036164,30]
[425789845,1781891455000,-500.0,0.00036164,30]
[425789847,1781891455000,-500.0,0.00036164,30]
[425789849,1781891455000,-503.73426057,0.00036164,30]
[425789838,1781891455000,-500.0,0.00036164,30]
[425789825,1781891455000,-650.37,0.00036,2]
[425789800,1781891455000,-879.40202763,0.00035728,2]
[425789820,1781891455000,-510.0,0.00035947,11]
[425789821,1781891455000,-214.0,0.00035973,120]
[425789801,1781891455000,-2000.0,0.00035762,7]
[425789802,1781891455000,-153.571906,0.00035772,120]
[425789804,1781891455000,-10000.07255026,0.000358,120]
[425789806,1781891455000,-269516.0,0.0003589,30]
[425789803,1781891455000,-500.0,0.00035794,31]
[425789808,1781891455000,-150.0,0.00035899,2]
[425789816,1781891455000,-621.20984372,0.000359,30]
[425789817,1781891455000,-196.83336596,0.000359,30]
[425789809,1781891455000,-1355.0,0.000359,106]
[425789807,1781891455000,-1785.88,0.0003589,120]
[425789805,1781891455000,-610.17804469,0.00035832,2]
[425789810,1781891455000,-600.0,0.000359,13]
[425789824,1781891455000,-999.0,0.00035998,7]
[425789813,1781891455000,-214.44385934,0.000359,30]
[425789822,1781891455000,-2539.72,0.00035997,30]
[425789823,1781891455000,-1269.86,0.00035997,30]
[425789818,1781891455000,-200.0,0.000359,13]
[425789819,1781891455000,-196.83336594,0.000359,30]
[425789811,1781891455000,-214.44385936,0.000359,30]
[425789815,1781891455000,-621.20984372,0.000359,30]
[425789848,1781891455000,-500.0,0.00036164,30]
[425789812,1781891455000,-214.44385934,0.000359,30]
[425789814,1781891455000,-621.20984372,0.000359,30]
[425789891,1781891456000,-500.0,0.00036164,30]
[425789884,1781891456000,-508.23569826,0.00036164,30]
[425789890,1781891456000,-535.66181927,0.00036164,30]
[425789888,1781891456000,-507.81655609,0.00036164,30]
[425789894,1781891456000,-510.97315328,0.00036164,30]
[425789883,1781891456000,-506.85430362,0.00036164,30]
[425789895,1781891456000,-500.0,0.00036164,30]
[425789886,1781891456000,-505.68740752,0.00036164,30]
[425789885,1781891456000,-499.09549784,0.00036164,30]
[425789879,1781891456000,-500.0,0.00036164,30]
[425789892,1781891456000,-503.32217473,0.00036164,30]
[425789887,1781891456000,-505.91648789,0.00036164,30]
[425789889,1781891456000,-500.0,0.00036164,30]
[425789913,1781891456000,-500.0,0.00036164,30]
[425789897,1781891456000,-509.57226118,0.00036164,30]
[425789899,1781891456000,-500.0,0.00036164,30]
[425789900,1781891456000,-500.0,0.00036164,30]
[425789896,1781891456000,-500.0,0.00036164,30]
[425789902,1781891456000,-500.0,0.00036164,30]
[425789906,1781891456000,-511.77096216,0.00036164,30]
[425789901,1781891456000,-503.64771726,0.00036164,30]
[425789905,1781891456000,-506.78349496,0.00036164,30]
[425789903,1781891456000,-501.39100291,0.00036164,30]
[425789904,1781891456000,-503.0457579,0.00036164,30]
[425789878,1781891456000,-500.0,0.00036164,30]
[425789912,1781891456000,-500.0,0.00036164,30]
[425789910,1781891456000,-500.0,0.00036164,30]
[425789893,1781891456000,-500.0,0.00036164,30]
[425789877,1781891456000,-509.89056603,0.00036164,30]
[425789868,1781891456000,-510.23115713,0.00036164,30]
[425789871,1781891456000,-515.33000266,0.00036164,30]
[425789855,1781891456000,-526.09268847,0.00036164,30]
[425789854,1781891456000,-527.56240038,0.00036164,30]
[425789852,1781891456000,-533.82115905,0.00036164,30]
[425789851,1781891456000,-500.0,0.00036164,30]
[425789850,1781891456000,-500.0,0.00036164,30]
[425789853,1781891456000,-500.0,0.00036164,30]
[425789856,1781891456000,-513.23827627,0.00036164,30]
[425789858,1781891456000,-504.85499714,0.00036164,5]
[425789859,1781891456000,-600.0,0.00036164,30]
[425789861,1781891456000,-500.0,0.00036164,30]
[425789857,1781891456000,-500.0,0.00036164,30]
[425789865,1781891456000,-500.0,0.00036164,30]
[425789862,1781891456000,-646.44909535,0.00036164,30]
[425789876,1781891456000,-530.15744129,0.00036164,30]
[425789864,1781891456000,-500.0,0.00036164,30]
[425789866,1781891456000,-1241.22,0.00036164,30]
[425789867,1781891456000,-458.72827467,0.00036164,30]
[425789860,1781891456000,-546.47218627,0.00036164,30]
[425789909,1781891456000,-552.02849875,0.00036164,30]
[425789870,1781891456000,-503.2992383,0.00036164,30]
[425789880,1781891456000,-706.22,0.00036164,30]
[425789882,1781891456000,-500.0,0.00036164,30]
[425789881,1781891456000,-500.0,0.00036164,30]
[425789869,1781891456000,-500.0,0.00036164,30]
[425789872,1781891456000,-500.0,0.00036164,30]
[425789875,1781891456000,-500.0,0.00036164,30]
[425789874,1781891456000,-515.19807291,0.00036164,30]
[425789873,1781891456000,-512.87232241,0.00036164,30]
[425789863,1781891456000,-504.81727005,0.00036164,30]
[425789907,1781891456000,-604.59353509,0.00036164,30]
[425789898,1781891456000,-500.0,0.00036164,30]
[425789963,1781891456000,-500.0,0.00036164,30]
[425789957,1781891456000,-413.74484838,0.00036164,7]
[425789945,1781891456000,-1187.2,0.00036164,30]
[425789947,1781891456000,-776.01,0.00036164,30]
[425789948,1781891456000,-330.43874274,0.00036164,30]
[425789950,1781891456000,-500.0,0.00036164,30]
[425789952,1781891456000,-500.0,0.00036164,30]
[425789949,1781891456000,-500.0,0.00036164,30]
[425789954,1781891456000,-500.0,0.00036164,30]
[425789951,1781891456000,-519.63787689,0.00036164,30]
[425789955,1781891456000,-622.55549463,0.00036164,30]
[425789953,1781891456000,-500.0,0.00036164,30]
[425789958,1781891456000,-559.43150604,0.00036164,30]
[425789961,1781891456000,-502.63996957,0.00036164,30]
[425789956,1781891456000,-561.92626879,0.00036164,30]
[425789962,1781891456000,-505.42601137,0.00036164,30]
[425789967,1781891456000,-526.29793873,0.00036164,30]
[425789960,1781891456000,-500.0,0.00036164,2]
[425789959,1781891456000,-500.0,0.00036164,2]
[425789969,1781891456000,-711.97,0.00036164,30]
[425789964,1781891456000,-758.99,0.00036164,30]
[425789918,1781891456000,-500.0,0.00036164,30]
[425789965,1781891456000,-500.0,0.00036164,30]
[425789966,1781891456000,-579.15646816,0.00036164,30]
[425789970,1781891456000,-500.0,0.00036164,30]
[425789974,1781891456000,-500.0,0.00036164,30]
[425789972,1781891456000,-500.0,0.00036164,30]
[425789973,1781891456000,-500.0,0.00036164,30]
[425789971,1781891456000,-500.0,0.00036164,30]
[425789968,1781891456000,-550.12334626,0.00036164,30]
[425789946,1781891456000,-583.18958661,0.00036164,30]
[425789919,1781891456000,-550.77816955,0.00036164,30]
[425789943,1781891456000,-500.0,0.00036164,30]
[425789944,1781891456000,-509.29950336,0.00036164,30]
[425789911,1781891456000,-500.0,0.00036164,30]
[425789915,1781891456000,-517.99480854,0.00036164,30]
[425789908,1781891456000,-513.08286692,0.00036164,30]
[425789914,1781891456000,-511.22263151,0.00036164,30]
[425789917,1781891456000,-502.99126746,0.00036164,30]
[425789921,1781891456000,-500.0,0.00036164,30]
[425789931,1781891456000,-547.06,0.00036164,30]
[425789932,1781891456000,-500.0,0.00036164,30]
[425789922,1781891456000,-508.07307814,0.00036164,30]
[425789920,1781891456000,-501.59482059,0.00036164,30]
[425789923,1781891456000,-506.80267442,0.00036164,30]
[425789924,1781891456000,-511.83276354,0.00036164,30]
[425789925,1781891456000,-646.95952939,0.00036164,30]
[425789916,1781891456000,-500.0,0.00036164,30]
[425789930,1781891456000,-722.18,0.00036164,30]
[425789941,1781891456000,-500.0,0.00036164,30]
[425789927,1781891456000,-500.0,0.00036164,30]
[425789938,1781891456000,-509.80685789,0.00036164,30]
[425789936,1781891456000,-517.08,0.00036164,30]
[425789934,1781891456000,-500.0,0.00036164,30]
[425789940,1781891456000,-154.48,0.00036164,30]
[425789942,1781891456000,-500.0,0.00036164,30]
[425789939,1781891456000,-166.78673444,0.00036164,30]
[425789935,1781891456000,-500.0,0.00036164,30]
[425789926,1781891456000,-500.0,0.00036164,30]
[425789933,1781891456000,-500.0,0.00036164,30]
[425789929,1781891456000,-509.78979179,0.00036164,30]
[425789937,1781891456000,-634.58,0.00036164,30]
[425789928,1781891456000,-500.0,0.00036164,30]
[425790007,1781891457000,-530.79551571,0.00036164,30]
[425790008,1781891457000,-750.15,0.00036164,30]
[425790006,1781891457000,-1011.35,0.00036164,30]
[425790002,1781891457000,-502.9181541,0.00036164,30]
[425789997,1781891457000,-601.92,0.00036164,30]
[425789995,1781891457000,-500.0,0.00036164,30]
[425790010,1781891457000,-500.0,0.00036164,30]
[425789996,1781891457000,-500.0,0.00036164,30]
[425790003,1781891457000,-500.0,0.00036164,30]
[425790016,1781891457000,-500.0,0.00036164,30]
[425790014,1781891457000,-514.81579811,0.00036164,30]
[425790009,1781891457000,-506.39355751,0.00036164,30]
[425790015,1781891457000,-500.0,0.00036164,30]
[425790012,1781891457000,-534.89469563,0.00036164,30]
[425790013,1781891457000,-500.0,0.00036164,30]
[425790026,1781891457000,-530.21385581,0.00036164,30]
[425790018,1781891457000,-500.0,0.00036164,30]
[425790025,1781891457000,-512.10690146,0.00036164,30]
[425790027,1781891457000,-500.0,0.00036164,30]
[425790005,1781891457000,-500.0,0.00036164,30]
[425790011,1781891457000,-505.87726493,0.00036164,30]
[425789998,1781891457000,-500.0,0.00036164,30]
[425789983,1781891457000,-503.76248558,0.00036164,30]
[425789999,1781891457000,-460.16785628,0.00036164,30]
[425789981,1781891457000,-500.0,0.00036164,30]
[425789975,1781891457000,-500.0,0.00036164,30]
[425789978,1781891457000,-500.0,0.00036164,30]
[425789976,1781891457000,-500.0,0.00036164,30]
[425789979,1781891457000,-500.0,0.00036164,30]
[425789977,1781891457000,-578.65258387,0.00036164,30]
[425789980,1781891457000,-500.0,0.00036164,30]
[425789982,1781891457000,-500.0,0.00036164,30]
[425789986,1781891457000,-904.92,0.00036164,30]
[425789987,1781891457000,-500.0,0.00036164,30]
[425789984,1781891457000,-500.0,0.00036164,30]
[425789985,1781891457000,-503.62927611,0.00036164,30]
[425789989,1781891457000,-500.0,0.00036164,30]
[425789990,1781891457000,-500.0,0.00036164,30]
[425789988,1781891457000,-502.90119364,0.00036164,30]
[425789992,1781891457000,-860.88,0.00036164,30]
[425789991,1781891457000,-500.0,0.00036164,30]
[425789994,1781891457000,-241.13190388,0.00036164,30]
[425790004,1781891457000,-504.83483885,0.00036164,30]
[425790001,1781891457000,-512.06980842,0.00036164,30]
[425789993,1781891457000,-500.0,0.00036164,30]
[425790000,1781891457000,-505.0188997,0.00036164,30]
[425790021,1781891457000,-2456.09,0.00036164,30]
[425790024,1781891457000,-1295.27,0.00036164,30]
[425790023,1781891457000,-500.0,0.00036164,30]
[425790052,1781891457000,-500.0,0.00036164,30]
[425790049,1781891457000,-600.32,0.00036164,30]
[425790051,1781891457000,-760.7,0.00036164,30]
[425790054,1781891457000,-500.0,0.00036164,30]
[425790053,1781891457000,-515.71604456,0.00036164,30]
[425790056,1781891457000,-500.0,0.00036164,30]
[425790055,1781891457000,-500.0,0.00036164,30]
[425790066,1781891457000,-500.0,0.00036164,30]
[425790059,1781891457000,-504.35499091,0.00036164,30]
[425790060,1781891457000,-500.0,0.00036164,30]
[425790057,1781891457000,-500.0,0.00036164,30]
[425790064,1781891457000,-507.94582151,0.00036164,30]
[425790065,1781891457000,-500.0,0.00036164,30]
[425790061,1781891457000,-500.0,0.00036164,30]